bitfinex/quotes_BTCUSD_20250102
["timestamp","ask_amount","ask_price","bid_price","bid_amount"]
[1735833008188,0.60121112,96656.0,96655.0,0.000171]
[1735833008512,0.206945,96644.0,96643.0,0.0001702]
[1735833009033,0.21167626,96644.0,96643.0,0.0001702]
[1735833010034,0.34097626,96644.0,96643.0,0.0001702]
[1735833011218,0.59097626,96644.0,96643.0,0.0001702]
[1735833011468,0.59097626,96644.0,96602.0,0.01015095]
[1735833011469,0.48269,96623.0,96602.0,0.01015095]
[1735833011675,0.58269,96623.0,96595.0,0.09254526]
[1735833011945,0.207075,96583.0,96580.0,0.2362192]
[1735833012176,0.207075,96583.0,96558.0,0.47779055]
[1735833012177,0.207084,96579.0,96558.0,0.47779055]
[1735833012408,0.457088,96577.0,96569.0,0.09259318]
[1735833012656,0.97954677,96577.0,96569.0,0.09259318]
[1735833012890,0.97954677,96577.0,96576.0,0.00066236]
[1735833012891,1.0156688,96577.0,96576.0,0.00066236]
[1735833013129,0.207103,96570.0,96569.0,0.09259318]
[1735833013386,0.207103,96570.0,96569.0,0.09274071]
[1735833013639,0.72956021,96570.0,96569.0,0.09274071]
[1735833013914,0.52245721,96570.0,96569.0,0.10413385]
[1735833014138,0.51748,96570.0,96569.0,0.10413385]
[1735833014884,0.51748,96570.0,96569.0,0.12713385]
[1735833015115,0.51748,96570.0,96569.0,0.13753181]
[1735833015910,0.51748,96570.0,96569.0,0.37665481]
[1735833016179,0.51748,96570.0,96569.0,0.37694581]
[1735833016844,0.51948,96570.0,96569.0,0.13753181]
[1735833017545,0.51748,96570.0,96569.0,0.13753181]
[1735833017933,0.51748,96570.0,96569.0,0.14353181]
[1735833018462,0.51748,96570.0,96569.0,0.13753181]
[1735833018649,0.51748,96570.0,96569.0,2.24621581]
[1735833018794,0.51748,96570.0,96569.0,0.13753181]
[1735833019129,0.51748,96570.0,96569.0,1.24861581]
[1735833020061,0.51748,96570.0,96569.0,1.09908281]
[1735833020652,0.51748,96570.0,96569.0,1.10508281]
[1735833020956,0.51748,96570.0,96569.0,1.09908281]
[1735833021330,0.51748,96570.0,96569.0,0.99548381]
[1735833021929,0.51748,96570.0,96569.0,0.54963281]
[1735833022169,0.51748,96570.0,96569.0,0.13753181]
[1735833022375,0.51748,96570.0,96569.0,0.14353181]
[1735833022954,0.5336855,96570.0,96569.0,0.12053181]
[1735833023152,0.51748,96570.0,96569.0,0.12053181]
[1735833023591,0.51748,96570.0,96569.0,0.12070301]
[1735833024173,0.51748,96570.0,96569.0,0.11470301]
[1735833024533,0.51948,96570.0,96569.0,0.11570301]
[1735833024868,0.5356859,96570.0,96569.0,0.11570301]
[1735833025109,0.5336859,96570.0,96569.0,0.53071501]
[1735833025293,0.5336859,96570.0,96569.0,1.26539201]
[1735833025497,0.5336859,96570.0,96569.0,0.81069901]
[1735833025950,0.51748,96570.0,96569.0,0.96069901]
[1735833026179,0.51748,96570.0,96569.0,0.95669901]
[1735833026798,0.47776851,96570.0,96569.0,1.28249901]
[1735833027232,8.56e-05,96576.0,96575.0,0.35]
[1735833027434,8.56e-05,96576.0,96575.0,0.47698632]
[1735833028058,8.56e-05,96576.0,96575.0,3.32275832]
[1735833028263,8.56e-05,96576.0,96575.0,3.61467232]
[1735833028500,8.56e-05,96576.0,96575.0,2.71628932]
[1735833028708,8.56e-05,96576.0,96575.0,0.10898632]
[1735833029104,8.56e-05,96576.0,96575.0,0.10398632]
[1735833029313,0.0020856,96576.0,96575.0,0.10498632]
[1735833030846,0.0020856,96576.0,96575.0,0.31207832]
[1735833030977,8.56e-05,96576.0,96575.0,0.31107832]
[1735833031421,8.56e-05,96576.0,96575.0,0.31507832]
[1735833031618,0.01629052,96576.0,96575.0,0.31507832]
[1735833031933,0.01629052,96576.0,96575.0,0.31107832]
[1735833032295,8.56e-05,96576.0,96575.0,0.31307832]
[1735833033110,8.56e-05,96576.0,96575.0,0.10598632]
[1735833033318,8.56e-05,96576.0,96575.0,0.31307832]
[1735833033646,8.56e-05,96576.0,96575.0,0.33379758]
[1735833034292,8.56e-05,96576.0,96575.0,0.35679758]
[1735833034492,8.56e-05,96576.0,96575.0,0.35479758]
[1735833034724,8.56e-05,96576.0,96575.0,0.35779758]
[1735833034970,8.56e-05,96576.0,96575.0,0.50779758]
[1735833035184,8.56e-05,96576.0,96575.0,0.85504358]
[1735833035352,8.56e-05,96576.0,96575.0,0.95204358]
[1735833035556,8.56e-05,96576.0,96575.0,1.05204358]
[1735833035756,0.0474,96629.0,96603.0,0.023]
[1735833035976,0.0086396,96628.0,96623.0,0.206989]
[1735833036170,0.0474,96629.0,96624.0,0.10398632]
[1735833036374,0.206956,96639.0,96625.0,0.206985]
[1735833036577,0.00864022,96638.0,96627.0,0.206981]
[1735833036783,0.206956,96639.0,96629.0,0.206977]
[1735833036984,0.206964,96636.0,96630.0,0.10398632]
[1735833037178,0.20744726,96639.0,96630.0,0.10398632]
[1735833037179,0.00858868,96635.0,96630.0,0.10398632]
[1735833037376,0.206963,96636.0,96630.0,0.10398632]
[1735833037637,0.20744726,96639.0,96630.0,0.10398632]
[1735833037825,0.206969,96633.0,96630.0,0.10398632]
[1735833037970,0.413914,96638.0,96616.0,0.01046587]
[1735833038175,0.207,96618.0,96617.0,0.10398632]
[1735833038408,0.29201309,96618.0,96617.0,0.10398632]
[1735833038605,0.21581309,96618.0,96617.0,0.10398632]
[1735833039428,0.207027,96606.0,96600.0,0.01056627]
[1735833039739,0.207034,96603.0,96601.0,0.10398632]
[1735833039938,0.00877257,96602.0,96601.0,0.10398632]
[1735833040781,0.00877257,96602.0,96601.0,0.10413385]
[1735833040975,0.08917257,96602.0,96601.0,0.10413385]
[1735833041186,0.02497554,96602.0,96601.0,0.10413385]
[1735833041556,0.00877257,96602.0,96601.0,0.10413385]
[1735833041957,0.20702,96609.0,96601.0,0.10413385]
[1735833042204,0.207035,96602.0,96601.0,0.10413385]
[1735833042408,0.21579625,96602.0,96601.0,0.10413385]
[1735833042615,0.00876125,96602.0,96601.0,0.10413385]
[1735833042828,0.20701,96614.0,96601.0,0.31217085]
[1735833043035,0.207018,96610.0,96601.0,0.10513385]
[1735833043240,0.00875884,96613.0,96604.0,0.207028]
[1735833043441,0.0496,96620.0,96605.0,0.10398632]
[1735833043592,0.21577184,96612.0,96605.0,0.10398632]
[1735833043809,0.207022,96608.0,96605.0,0.10398632]
[1735833043994,0.00875517,96607.0,96605.0,0.10398632]
[1735833045000,0.00875517,96607.0,96601.0,0.00014753]
[1735833045001,0.00875517,96607.0,96606.0,0.10398632]
[1735833045208,0.001,96607.0,96606.0,0.10398632]
[1735833045593,0.206989,96624.0,96606.0,0.31101232]
[1735833045810,0.206992,96622.0,96611.0,0.207014]
[1735833046014,0.206992,96622.0,96609.0,0.10398632]
[1735833046015,0.207001,96618.0,96612.0,0.10398632]
[1735833046219,0.0087685,96617.0,96612.0,0.10398632]
[1735833047029,0.207005,96616.0,96612.0,0.10398632]
[1735833047442,0.00877797,96615.0,96612.0,0.10398632]
[1735833048070,0.206995,96621.0,96612.0,0.10398632]
[1735833048225,0.00878042,96614.0,96612.0,0.10398632]
[1735833048431,0.2070806,96621.0,96612.0,0.10598632]
[1735833048828,0.21577642,96620.0,96612.0,0.10398632]
[1735833049034,0.20701,96614.0,96612.0,0.10398632]
[1735833049231,0.20701,96614.0,96612.0,0.10498632]
[1735833049438,0.00876494,96613.0,96612.0,0.001]
[1735833049913,0.05676494,96613.0,96612.0,0.001]
[1735833050650,0.207035,96602.0,96601.0,0.00014753]
[1735833050843,0.207035,96602.0,96601.0,0.10413385]
[1735833051049,0.00874896,96602.0,96601.0,0.10413385]
[1735833051455,0.048,96613.0,96601.0,0.10413385]
[1735833051656,0.048,96613.0,96602.0,0.10398632]
[1735833052268,0.207028,96605.0,96602.0,0.10398632]
[1735833052479,0.414056,96605.0,96602.0,0.10398632]
[1735833052678,0.207032,96603.0,96602.0,0.10398632]
[1735833054713,0.21576055,96603.0,96602.0,0.10398632]
[1735833055056,0.00872855,96603.0,96602.0,0.10398632]
[1735833055690,0.206997,96620.0,96602.0,0.10398632]
[1735833055896,0.206997,96620.0,96609.0,0.207019]
[1735833056106,0.00866793,96619.0,96610.0,0.10398632]
[1735833056570,0.207,96618.0,96610.0,0.10398632]
[1735833056772,0.00867319,96618.0,96617.0,0.10398632]
[1735833056975,8.56e-05,96621.0,96618.0,0.229999]
[1735833057217,8.56e-05,96621.0,96620.0,0.12698632]
[1735833058235,8.56e-05,96621.0,96620.0,0.30588632]
[1735833058613,8.56e-05,96621.0,96620.0,0.50551632]
[1735833058825,8.56e-05,96621.0,96620.0,0.42926332]
[1735833058955,8.56e-05,96621.0,96620.0,0.43983696]
[1735833059363,8.56e-05,96621.0,96620.0,0.21645996]
[1735833059568,8.56e-05,96621.0,96620.0,0.21945996]
[1735833059775,8.56e-05,96621.0,96620.0,0.75794296]
[1735833059981,8.56e-05,96621.0,96620.0,0.77554296]
[1735833060436,8.56e-05,96621.0,96620.0,0.66306932]
[1735833060633,8.56e-05,96621.0,96620.0,0.10698632]
[1735833060831,0.00894294,96621.0,96620.0,0.10698632]
[1735833061737,8.56e-05,96621.0,96620.0,0.31098232]
[1735833062162,8.56e-05,96621.0,96620.0,0.33598232]
[1735833062368,8.56e-05,96621.0,96620.0,0.31298232]
[1735833062566,8.56e-05,96621.0,96620.0,0.31098232]
[1735833062978,8.56e-05,96621.0,96620.0,0.31398232]
[1735833063568,8.56e-05,96621.0,96620.0,0.31098232]
[1735833064202,8.56e-05,96621.0,96620.0,0.10398632]
[1735833064408,8.56e-05,96621.0,96620.0,0.31098232]
[1735833065263,8.56e-05,96621.0,96620.0,0.31598232]
[1735833065684,0.01628398,96621.0,96620.0,0.31598232]
[1735833065894,0.01628398,96621.0,96620.0,0.31098232]
[1735833066362,0.01628398,96621.0,96620.0,0.33398232]
[1735833066793,0.01628398,96621.0,96620.0,0.33698232]
[1735833068080,8.56e-05,96621.0,96620.0,0.33698232]
[1735833068318,8.56e-05,96621.0,96620.0,0.35743987]
[1735833068526,8.56e-05,96621.0,96620.0,0.35443987]
[1735833068949,8.56e-05,96621.0,96620.0,0.35743987]
[1735833069590,8.56e-05,96621.0,96620.0,0.35443987]
[1735833070672,8.56e-05,96621.0,96620.0,0.33898232]
[1735833071496,8.56e-05,96621.0,96620.0,0.10898632]
[1735833071916,0.0088844,96621.0,96620.0,0.10898632]
[1735833072280,0.02508318,96621.0,96620.0,0.10398632]
[1735833072506,0.0088844,96621.0,96620.0,0.10398632]
[1735833072709,0.207035,96602.0,96601.0,0.09238332]
[1735833072932,0.207035,96602.0,96601.0,0.19636964]
[1735833073117,0.21584936,96602.0,96601.0,0.19636964]
[1735833073537,0.00881436,96602.0,96601.0,0.19636964]
[1735833073911,8.56e-05,96621.0,96602.0,0.207035]
[1735833074115,0.207016,96611.0,96603.0,0.10398632]
[1735833074313,0.01620156,96617.0,96603.0,0.10398632]
[1735833074515,0.207024,96607.0,96603.0,0.10398632]
[1735833074874,0.21579493,96606.0,96603.0,0.10398632]
[1735833075233,0.42282193,96606.0,96603.0,0.10398632]
[1735833075648,0.42282193,96606.0,96601.0,0.00214753]
[1735833075649,0.462461,96604.0,96601.0,0.00214753]
[1735833075808,0.00877044,96603.0,96601.0,0.00214753]
[1735833076029,0.207035,96602.0,96601.0,0.00014753]
[1735833076285,0.46579561,96602.0,96601.0,0.00014753]
[1735833076929,0.56579561,96602.0,96601.0,0.00014753]
[1735833077112,0.207088,96577.0,96573.0,0.09223579]
[1735833077324,0.207088,96577.0,96576.0,0.10430514]
[1735833077527,0.26191963,96577.0,96576.0,0.00031882]
[1735833077723,0.36191963,96577.0,96576.0,0.00031882]
[1735833078346,0.51191963,96577.0,96576.0,0.00031882]
[1735833078550,0.51191963,96577.0,96570.0,0.0001712]
[1735833078551,0.35,96571.0,96570.0,0.0001712]
[1735833078767,0.35871572,96571.0,96570.0,0.0001712]
[1735833078976,0.00871572,96571.0,96570.0,0.10415752]
[1735833079174,0.414194,96573.0,96570.0,0.10415752]
[1735833079381,0.0085713,96572.0,96571.0,0.10398632]
[1735833080794,0.207101,96571.0,96570.0,0.0001712]
[1735833081233,0.21564509,96571.0,96570.0,0.0001712]
[1735833081843,0.21350907,96571.0,96570.0,0.0001712]
[1735833082909,0.21450907,96571.0,96570.0,0.10415752]
[1735833083122,0.00740807,96571.0,96570.0,0.10415752]
[1735833083333,0.00740807,96571.0,96570.0,0.31126052]
[1735833083544,0.00640807,96571.0,96570.0,0.31126052]
[1735833083807,0.207059,96591.0,96577.0,0.207087]
[1735833084028,0.19143025,96609.0,96587.0,0.10398632]
[1735833084029,0.0477,96607.0,96587.0,0.10398632]
[1735833084243,0.00460062,96590.0,96587.0,0.10398632]
[1735833084467,0.01620513,96588.0,96587.0,0.10398632]
[1735833086672,0.00014729,96598.0,96587.0,0.12698632]
[1735833086887,0.00014729,96598.0,96597.0,0.31103132]
[1735833087272,0.00014729,96598.0,96597.0,0.10398632]
[1735833089360,0.00014729,96598.0,96597.0,0.137516]
[1735833089583,0.00014729,96598.0,96597.0,1.190229]
[1735833089818,0.00014729,96598.0,96597.0,2.383224]
[1735833090024,8.55e-05,96602.0,96601.0,0.273]
[1735833090234,8.55e-05,96602.0,96601.0,0.47698632]
[1735833090612,8.55e-05,96602.0,96601.0,1.63123532]
[1735833090830,8.55e-05,96602.0,96601.0,2.73783232]
[1735833091030,8.56e-05,96621.0,96601.0,2.73783232]
[1735833091031,8.56e-05,96621.0,96617.0,0.1]
[1735833091363,8.56e-05,96621.0,96620.0,0.12698632]
[1735833091644,8.56e-05,96621.0,96620.0,0.20228632]
[1735833091852,8.56e-05,96621.0,96620.0,2.38842032]
[1735833092013,8.56e-05,96621.0,96620.0,2.86999332]
[1735833092228,8.56e-05,96621.0,96620.0,2.38965032]
[1735833092488,8.56e-05,96621.0,96620.0,2.37309932]
[1735833092618,8.56e-05,96621.0,96620.0,2.22197532]
[1735833092993,8.56e-05,96621.0,96620.0,2.16599832]
[1735833093403,8.56e-05,96621.0,96620.0,2.03176532]
[1735833093626,8.56e-05,96621.0,96620.0,0.59555932]
[1735833094552,8.56e-05,96621.0,96620.0,0.20228632]
[1735833094764,8.56e-05,96621.0,96620.0,1.89245002]
[1735833094964,8.56e-05,96621.0,96620.0,2.06202017]
[1735833095168,8.56e-05,96621.0,96620.0,0.51007717]
[1735833095379,8.56e-05,96621.0,96620.0,0.39104817]
[1735833095684,8.56e-05,96621.0,96620.0,0.13009747]
[1735833095896,8.56e-05,96621.0,96620.0,0.10898632]
[1735833096105,0.2070796,96621.0,96620.0,0.10898632]
[1735833096320,0.2070796,96621.0,96620.0,0.005]
[1735833096527,0.22753056,96621.0,96620.0,0.005]
[1735833096759,0.22753056,96621.0,96620.0,0.10898632]
[1735833097502,0.22753056,96621.0,96620.0,0.10398632]
[1735833097713,0.207029,96605.0,96592.0,0.207054]
[1735833097934,0.207029,96605.0,96599.0,0.10398632]
[1735833098133,0.207032,96603.0,96602.0,0.000171]
[1735833098338,0.207032,96603.0,96602.0,0.10415732]
[1735833098684,0.21125495,96603.0,96602.0,0.000171]
[1735833098884,0.21125495,96603.0,96602.0,0.10415732]
[1735833099134,0.00422295,96603.0,96602.0,0.10415732]
[1735833099564,8.56e-05,96621.0,96602.0,0.10415732]
[1735833099766,0.207009,96614.0,96603.0,0.10398632]
[1735833099975,0.207012,96613.0,96603.0,0.10398632]
[1735833100392,0.00383545,96612.0,96603.0,0.10398632]
[1735833100595,0.00383545,96612.0,96602.0,0.000171]
[1735833100596,0.00383545,96612.0,96608.0,0.10398632]
[1735833101105,0.00438981,96611.0,96608.0,0.10398632]
[1735833101309,0.00438981,96611.0,96610.0,0.10398632]
[1735833101517,0.207001,96618.0,96610.0,0.10398632]
[1735833101752,0.207001,96618.0,96614.0,0.10398632]
[1735833101954,0.207005,96616.0,96614.0,0.10398632]
[1735833102188,0.207005,96616.0,96602.0,0.000171]
[1735833102189,0.00438981,96617.0,96615.0,0.10398632]
[1735833102365,0.207003,96617.0,96615.0,0.10398632]
[1735833102560,0.202003,96617.0,96615.0,0.10398632]
[1735833102775,0.21820393,96617.0,96615.0,0.10398632]
[1735833102953,0.00435283,96616.0,96615.0,0.10398632]
[1735833106461,0.207032,96603.0,96602.0,0.000171]
[1735833106792,0.21143092,96603.0,96602.0,0.10415732]
[1735833108195,0.21143092,96603.0,96602.0,0.000171]
[1735833108721,0.31143092,96603.0,96602.0,0.000171]
[1735833109127,0.46143092,96603.0,96602.0,0.000171]
[1735833109468,0.457045,96597.0,96596.0,0.03]
[1735833109673,0.36141929,96597.0,96596.0,0.03]
[1735833111327,0.21141929,96597.0,96596.0,0.13398632]
[1735833113037,0.21241929,96597.0,96596.0,0.13398632]
[1735833113241,0.00537429,96597.0,96596.0,0.13398632]
[1735833113865,0.00437429,96597.0,96596.0,0.13398632]
[1735833114086,0.001,96597.0,96596.0,0.13398632]
[1735833114336,0.0053182,96597.0,96596.0,0.13398632]
[1735833114512,0.00676041,96597.0,96596.0,0.13398632]
[1735833115558,0.00576041,96597.0,96596.0,0.13398632]
[1735833115974,0.01620349,96597.0,96596.0,0.13398632]
[1735833116165,0.02198352,96597.0,96596.0,0.13398632]
[1735833116832,0.02298352,96597.0,96596.0,0.13398632]
[1735833117379,0.00678003,96597.0,96596.0,0.13398632]
[1735833120218,0.00678003,96597.0,96596.0,0.03]
[1735833120818,0.05428003,96597.0,96596.0,0.03]
[1735833121233,0.30428003,96597.0,96596.0,0.03]
[1735833121433,0.207095,96574.0,96570.0,0.0001712]
[1735833121644,0.41419,96574.0,96572.0,0.10398632]
[1735833121850,0.00475371,96573.0,96572.0,0.10398632]
[1735833122115,0.00475371,96573.0,96571.0,0.00031829]
[1735833122116,0.457099,96572.0,96571.0,0.00031829]
[1735833122302,0.584999,96572.0,96571.0,0.00031829]
[1735833122501,0.58972104,96572.0,96571.0,0.00031829]
[1735833123371,1.10747104,96572.0,96571.0,0.00031829]
[1735833124000,1.20747104,96572.0,96571.0,0.00031829]
[1735833125139,0.72957104,96572.0,96571.0,0.10430461]
[1735833125341,0.74578006,96572.0,96571.0,0.10830461]
[1735833125560,0.53868106,96572.0,96571.0,0.10830461]
[1735833125772,0.53868106,96572.0,96571.0,0.10430461]
[1735833125984,0.52247204,96572.0,96571.0,0.12491634]
[1735833126192,0.52247204,96572.0,96571.0,0.14791634]
[1735833126404,0.51975,96572.0,96571.0,0.14791634]
[1735833126609,0.51975,96572.0,96571.0,0.33009734]
[1735833126819,0.51975,96572.0,96571.0,0.46952351]
[1735833127028,0.51975,96572.0,96571.0,0.54972351]
[1735833128244,0.51775,96572.0,96571.0,0.52672351]
[1735833129237,0.207045,96598.0,96585.0,0.20707]
[1735833129507,0.207045,96598.0,96590.0,0.10398632]
[1735833129862,0.01620308,96595.0,96590.0,0.10398632]
[1735833130062,0.207031,96604.0,96590.0,0.10398632]
[1735833130666,0.01046085,96617.0,96598.0,0.10398632]
[1735833130667,0.207013,96613.0,96598.0,0.10398632]
[1735833130865,8.55e-05,96617.0,96607.0,0.207023]
[1735833131075,8.55e-05,96617.0,96608.0,0.10398632]
[1735833131293,8.55e-05,96617.0,96611.0,0.10398632]
[1735833131510,8.55e-05,96617.0,96613.0,0.10398632]
[1735833131696,8.55e-05,96617.0,96613.0,0.13398632]
[1735833132090,0.00057746,96617.0,96613.0,0.13398632]
[1735833132493,0.00057746,96617.0,96614.0,0.207009]
[1735833132646,0.00057746,96617.0,96615.0,0.10398632]
[1735833133674,0.01677733,96617.0,96615.0,0.10398632]
[1735833133886,0.01677733,96617.0,96615.0,0.09398632]
[1735833134846,0.01677733,96617.0,96616.0,0.31099132]
[1735833135265,0.00057746,96617.0,96616.0,0.86854432]
[1735833135477,0.00057746,96617.0,96616.0,2.39622332]
[1735833135685,4.6e-07,96617.0,96616.0,3.76587232]
[1735833135887,4.6e-07,96617.0,96616.0,0.90679132]
[1735833136299,8.56e-05,96621.0,96620.0,0.45]
[1735833136508,0.01619564,96674.0,96651.0,0.16706228]
[1735833136714,0.00014758,96666.0,96660.0,0.10398632]
[1735833137311,0.2069,96665.0,96660.0,0.10398632]
[1735833137676,0.4138,96665.0,96660.0,0.10398632]
[1735833138070,0.20695,96642.0,96636.0,0.01045754]
[1735833138346,0.20695,96642.0,96637.0,0.10398632]
[1735833138554,0.4139,96642.0,96637.0,0.10398632]
[1735833138965,0.206941,96646.0,96637.0,0.10398632]
[1735833139181,0.206928,96652.0,96637.0,0.10398632]
[1735833139379,0.20694,96647.0,96637.0,0.10398632]
[1735833139582,0.206921,96655.0,96642.0,0.10398632]
[1735833139796,0.206911,96660.0,96643.0,0.206947]
[1735833140000,0.206924,96654.0,96644.0,0.10398632]
[1735833140210,0.15,96672.0,96644.0,0.10398632]
[1735833140417,0.206928,96652.0,96644.0,0.10398632]
[1735833140920,0.206918,96657.0,96644.0,0.10398632]
[1735833141095,8.55e-05,96673.0,96648.0,0.31092232]
[1735833141341,0.1,96672.0,96648.0,0.10398632]
[1735833141546,0.15,96671.0,96648.0,0.10398632]
[1735833141732,0.413855,96652.0,96648.0,0.10398632]
[1735833142926,0.206972,96632.0,96625.0,0.02048066]
[1735833143134,0.206972,96632.0,96628.0,0.10398632]
[1735833143337,0.413944,96632.0,96628.0,0.10398632]
[1735833143544,0.206965,96635.0,96628.0,0.10398632]
[1735833143755,0.206973,96631.0,96628.0,0.10398632]
[1735833144380,0.2071205,96631.0,96628.0,0.10398632]
[1735833144557,0.4140935,96631.0,96628.0,0.10398632]
[1735833145019,0.2071205,96631.0,96628.0,0.10398632]
[1735833146675,0.2071205,96631.0,96628.0,0.10498632]
[1735833147500,0.4140935,96631.0,96628.0,0.10498632]
[1735833147706,0.2071205,96631.0,96628.0,0.10498632]
[1735833148086,0.0001475,96631.0,96628.0,0.10498632]
[1735833148516,0.2071205,96631.0,96628.0,0.10498632]
[1735833148720,0.206975,96630.0,96628.0,0.10498632]
[1735833149871,0.0001475,96631.0,96628.0,0.10498632]
[1735833150117,0.0001475,96631.0,96628.0,0.10398632]
[1735833150328,0.206975,96630.0,96628.0,0.10598632]
[1735833150757,0.206975,96630.0,96628.0,0.002]
[1735833150983,0.206992,96622.0,96621.0,0.000171]
[1735833151392,0.356992,96622.0,96621.0,0.000171]
[1735833151610,0.506592,96622.0,96621.0,0.000171]
[1735833151824,0.1,96612.0,96600.0,0.04144]
[1735833152093,0.207037,96601.0,96600.0,0.04144]
[1735833152295,0.357037,96601.0,96600.0,0.04144]
[1735833152543,0.15,96600.0,96572.0,0.09252113]
[1735833152767,0.20708,96581.0,96573.0,0.10398632]
[1735833153204,0.1,96603.0,96580.0,0.10398632]
[1735833153407,0.207061,96590.0,96580.0,0.10398632]
[1735833153613,0.207077,96583.0,96580.0,0.10447828]
[1735833154697,0.414153,96583.0,96580.0,0.10447828]
[1735833155301,0.43035832,96583.0,96580.0,0.10447828]
[1735833155512,0.43035832,96583.0,96580.0,0.10647828]
[1735833155723,0.414153,96583.0,96580.0,0.10647828]
[1735833157107,0.414153,96583.0,96580.0,0.10447828]
[1735833158431,0.415153,96583.0,96580.0,0.10447828]
[1735833160513,0.35708,96581.0,96580.0,0.00066296]
[1735833162585,0.35808,96581.0,96580.0,0.00066296]
[1735833163576,0.20808,96581.0,96580.0,0.10464928]
[1735833164216,0.20708,96581.0,96580.0,0.10464928]
[1735833164797,0.20708,96581.0,96580.0,0.00066296]
[1735833165000,0.20808,96581.0,96580.0,0.00066296]
[1735833165794,0.20708,96581.0,96580.0,0.00066296]
[1735833166223,0.20808,96581.0,96580.0,0.00066296]
[1735833168319,0.20708,96581.0,96580.0,0.00066296]
[1735833168766,0.82578,96581.0,96580.0,0.00066296]
[1735833171070,0.72578,96581.0,96580.0,0.00066296]
[1735833171452,0.82578,96581.0,96580.0,0.00066296]
[1735833171835,1.14648,96581.0,96580.0,0.00066296]
[1735833172038,1.15665008,96581.0,96580.0,0.00066296]
[1735833172729,1.2606364,96581.0,96580.0,9.6e-07]
[1735833172985,1.15565008,96581.0,96580.0,9.6e-07]
[1735833173232,1.15565008,96581.0,96510.0,0.16706228]
[1735833173233,0.373,96559.0,96558.0,4e-07]
[1735833173513,1.097827,96559.0,96558.0,6.9e-07]
[1735833174218,0.557142,96552.0,96551.0,6.9e-07]
[1735833174466,1.219442,96552.0,96551.0,3.4e-07]
[1735833176736,0.557152,96547.0,96546.0,7.4e-07]
[1735833176939,1.20183832,96547.0,96546.0,7.4e-07]
[1735833177537,1.097852,96547.0,96546.0,7.4e-07]
[1735833177965,0.874852,96547.0,96546.0,7.4e-07]
[1735833178982,0.88532092,96547.0,96546.0,7.4e-07]
[1735833179464,0.724852,96547.0,96546.0,7.4e-07]
[1735833180589,0.874852,96547.0,96546.0,7.4e-07]
[1735833180793,1.02531921,96547.0,96546.0,7.4e-07]
[1735833180990,1.35560553,96547.0,96546.0,7.4e-07]
[1735833181218,0.457198,96526.0,96524.0,0.000171]
[1735833181419,0.974898,96526.0,96524.0,0.000171]
[1735833182295,0.98505332,96526.0,96524.0,0.000171]
[1735833182653,1.00127069,96526.0,96524.0,0.000171]
[1735833183061,0.88505332,96526.0,96524.0,0.000171]
[1735833183262,0.98505332,96526.0,96524.0,0.000171]
[1735833183900,0.88505332,96526.0,96524.0,0.000171]
[1735833185027,0.88905332,96526.0,96524.0,0.000171]
[1735833185259,0.728898,96526.0,96525.0,0.10415672]
[1735833185815,0.728898,96526.0,96525.0,0.0001704]
[1735833186221,0.724898,96526.0,96525.0,0.0001704]
[1735833186609,0.727898,96526.0,96525.0,0.0001704]
[1735833187234,0.724898,96526.0,96525.0,0.0001704]
[1735833187441,0.725898,96526.0,96525.0,0.10415672]
[1735833187610,0.5187,96526.0,96525.0,0.10415672]
[1735833188206,0.5177,96526.0,96525.0,0.10415672]
[1735833189812,0.5187,96526.0,96525.0,0.10415672]
[1735833190214,0.5177,96526.0,96525.0,0.10415672]
[1735833190664,0.5177,96526.0,96525.0,0.10615672]
[1735833192762,0.5177,96526.0,96525.0,0.10415672]
[1735833193225,0.5177,96526.0,96525.0,0.10515672]
[1735833194269,0.5177,96526.0,96525.0,0.10415672]
[1735833194673,0.5177,96526.0,96525.0,0.10515672]
[1735833196805,0.5177,96526.0,96525.0,0.10415672]
[1735833197187,0.5177,96526.0,96525.0,0.10515672]
[1735833198038,0.5177,96526.0,96525.0,0.10415672]
[1735833198481,0.5177,96526.0,96525.0,0.10715672]
[1735833200247,0.5177,96526.0,96525.0,0.0031704]
[1735833200446,0.6677,96526.0,96525.0,0.0031704]
[1735833200652,0.7677,96526.0,96525.0,0.0001704]
[1735833200848,0.8907,96526.0,96525.0,0.0001704]
[1735833201267,0.90095264,96526.0,96525.0,0.0001704]
[1735833201875,0.80095264,96526.0,96525.0,0.0001704]
[1735833202070,0.90395264,96526.0,96525.0,0.0001704]
[1735833202267,0.2,96525.0,96524.0,4e-07]
[1735833202487,0.373,96519.0,96518.0,1e-06]
[1735833202756,0.1,96506.0,96504.0,0.000171]
[1735833202982,1.097941,96506.0,96504.0,0.000171]
[1735833203559,0.35,96500.0,96499.0,8e-07]
[1735833203766,0.1,96484.0,96463.0,0.09252113]
[1735833204009,0.8907,96484.0,96463.0,0.09252113]
[1735833204201,1.097988,96484.0,96483.0,8e-07]
[1735833204824,1.11421318,96484.0,96483.0,8e-07]
[1735833205119,1.11421318,96484.0,96483.0,0.00049364]
[1735833205830,1.12770717,96484.0,96483.0,0.00049364]
[1735833206095,1.12770717,96484.0,96483.0,6.4e-07]
[1735833206339,1.12770717,96484.0,96454.0,0.0001708]
[1735833206340,0.557314,96472.0,96471.0,6.4e-07]
[1735833206603,0.42545,96455.0,96454.0,0.0001708]
[1735833206880,0.557361,96450.0,96449.0,8e-07]
[1735833207127,0.68434732,96450.0,96449.0,5.9e-07]
[1735833207400,0.5574,96432.0,96431.0,0.0002]
[1735833207647,1.0981,96432.0,96431.0,0.0003124]
[1735833207902,1.1152534,96432.0,96431.0,0.0003124]
[1735833209300,1.13618066,96432.0,96431.0,0.0003124]
[1735833210087,0.207486,96392.0,96386.0,8.55e-05]
[1735833210260,0.725186,96392.0,96391.0,0.00034792]
[1735833210503,0.90499951,96392.0,96391.0,0.00034792]
[1735833210721,1.05205492,96392.0,96391.0,0.00034792]
[1735833211141,1.15205492,96392.0,96391.0,0.00034792]
[1735833211341,1.16264274,96392.0,96391.0,0.00034792]
[1735833212156,0.96264274,96392.0,96391.0,0.00034792]
[1735833212347,1.16264274,96392.0,96391.0,0.00034792]
[1735833212542,1.16364274,96392.0,96391.0,0.00034792]
[1735833212994,0.91658733,96392.0,96391.0,0.00034792]
[1735833213107,0.876186,96392.0,96391.0,0.00034792]
[1735833213317,0.726186,96392.0,96391.0,0.00034792]
[1735833213654,0.726186,96392.0,96391.0,0.10433424]
[1735833213995,0.725186,96392.0,96391.0,0.10433424]
[1735833214198,0.5177,96392.0,96391.0,0.10433424]
[1735833214356,0.5217,96392.0,96391.0,0.10433424]
[1735833214970,0.5177,96392.0,96391.0,0.10433424]
[1735833215327,0.5177,96392.0,96391.0,0.10733424]
[1735833215739,0.5177,96392.0,96391.0,0.10433424]
[1735833217302,0.5177,96392.0,96391.0,0.10833424]
[1735833220059,0.5177,96392.0,96391.0,0.10841994]
[1735833220673,0.5177,96392.0,96391.0,0.00443362]